{"text_format":"2","workbook":"xlsx","n_sheets":1,"sheets":["Bestellung Trimtex"],"not_rendered":{"charts":0,"images":1,"macros":0,"external_links":0,"defined_names":1,"comments":0,"pivot_tables":0},"unopened":[],"bounds":{"document_bytes":16777216,"sheet_cells":100000,"run_cost":"one","rows_first":2000,"rows_last":500,"rows_between":2000,"halvings":0,"cell_chars":16384,"cell_head_chars":4096},"cells_cut":0,"cells_raw":0,"read":"whole","date_system":"1900"}

{"sheet":"Bestellung Trimtex","index":0,"n_rows":47,"n_cols":18,"rows_kept":47,"cut":false,"hidden":false,"merged":[[3,17,4,17],[3,3,4,3],[36,0,36,2],[1,1,1,3],[2,1,2,3],[3,5,3,8],[3,9,3,15]]}
["Bestellformular NSK Thun"]
["Name:",{"$nulls":4},"E-Mail:"]
[]
[null,null,null,"Prix NSK Thun\n(TVA incluse)",null,"Grössen Junior",null,null,null,"Grössen Erwachsene",{"$nulls":7},"Prix total \n(TVA Incluse)"]
["PRODUCT","Model-ID","M/W/JR",null,"Prix enfant \n(TVA incluse)",130,140,150,160,"XS","S","M","L","XL","XXL","XXXL","Total"]
["Training Suits Winter"]
["Ace",null,null,null,"(N/A=not available)"]
["Ace Jacket","A190-L","Mens",145.5,"N/A",{"$nulls":5},1,{"$nulls":5},{"$f":"SUM(F8:P8)","v":1},{"$f":"Q8*D8","v":145.5}]
["Ace Women's Jacket","A190-L","Womens",145.5,"N/A",{"$nulls":11},{"$f":"SUM(F9:P9)","v":0},{"$f":"Q9*D9","v":0}]
["Ace Pants","A192-L","Mens",105,"N/A",{"$nulls":11},0,0]
["Ace Women's Pants","A193-L","Womens",105,"N/A",{"$nulls":11},0,0]
["Ace Vest ","A194-L","Mens/Junior",97,"N/A",{"$nulls":11},0,0]
["Ace Women's Vest ","A195-L","Womens",97,"N/A",{"$nulls":11},0,0]
["Element Plus"]
["Element Plus Jacket","A29.3-L","Mens/Junior",126.75,104.25,{"$nulls":11},0,0]
["Element Plus Womens Jacket","A81.2-L","Womens",126.75,"N/A",{"$nulls":11},0,0]
["Element Plus Pants w/design","A43.2-L/3/4Z","Mens/Junior",90,83,{"$nulls":11},0,0]
["Element Plus Womens Pants w/design","A83.1-L/3/4Z","Womens",90,"N/A",{"$nulls":11},0,0]
["Element Plus Vests"]
["Element Plus Vest","A28.3-L","Mens/Junior",85.5,70.5,{"$nulls":11},0,0]
["Element Plus Womens Vest","A84.2-L","Womens",85.5,"N/A",{"$nulls":11},0,0]
["Element 2.0  - New 2019/20"]
["Element 2.0 Jacket","A232-L","Mens/Junior",115.5,93,{"$nulls":11},0,0]
["Element 2.0 Women's Jacket","A233-L","Womens",115.5,"N/A",{"$nulls":11},0,0]
["Element 2.0 Pants m/design","A234-L-3/4Z","Mens/Junior",85,74.25,{"$nulls":11},0,0]
["Element 2.0 Women's Pants m/design","A235-L-3/4Z","Womens",85,"N/A",{"$nulls":11},0,0]
["Ski nordique"]
["Vision (Renndress)"]
["Vision Raceshirt","B20.3-LVZ","Mens/Junior",73.5,59.25,{"$nulls":11},0,0]
["Vision Womens Raceshirt","B23.1-LVZ","Womens",73.5,"N/A",{"$nulls":11},0,0]
["Vision Racetights","B32.2-LVZ","Mens/Junior",66,59.25,{"$nulls":11},0,0]
["Vision Womens Racetights","B33.1-LVZ","Womens",66,"N/A",{"$nulls":11},0,0]
["Athletics/Course à pied"]
["Run T-Shirts "]
["Run Ecogreen T-shirt","C65-LVZ/SS","Mens/Junior",35,28.5,{"$nulls":11},0,0]
["Run Ecogreen Womens T-Shirt","C165-LVZ/SS","Womens",35,"N/A",{"$nulls":11},0,0]
["Storm TX Collection (inkl. max 11.00 CHF für Druck)",{"$nulls":4},"Size:",{"$nulls":8},"XXL","3XL"]
["Storm Down 500 Jacket, Blue","S25","Mens/Junior",139,119.25,{"$nulls":11},0,{"$f":"(IF(E38=\"N/A\",SUM(J38:P38)*D38,SUM(F38:I38)*E38+SUM(J38:P38)*D38))","v":0}]
["Storm Down 500 Womens Jacket, Blue","S26","Womens",139,"N/A",{"$nulls":11},0,0]
["Accessoires"]
["Caps/Headbands"]
["Bi-Elastic Cap","B56-L","Unisex",22.5,"N/A",{"$nulls":11},{"$f":"SUM(F42:P42)","v":0},0]
["Bi-Elastic Air Headband","B49-L","Unisex",14.5,"N/A",{"$nulls":11},0,0]
["Pulse Merino Caps/Headbands"]
["Pulse Merino Cap","B256-L","Unisex",26.25,"N/A",{"$nulls":11},0,0]
[]
["Der NSK übernimmt CH 15.- pro Kleidungsstück, CHF 10.- pro T-shirt und CHF 5.- pro Mütze oder Stirnband"]